fUSD/lending_fUSD_20260427
["ID","MTS","AMOUNT","RATE_DAILY","PERIOD"]
[421244361,1777287097780,-1898.91,0.0003452,120]
[421244362,1777287097790,-2008.02,0.0003452,120]
[421244363,1777287097799,-500.0,0.0003452,120]
[421244364,1777287097809,-546.88,0.0003452,120]
[421244365,1777287097818,-500.0,0.0003452,120]
[421244366,1777287097828,-500.0,0.0003452,120]
[421244367,1777287097839,-933.2,0.0003452,120]
[421244368,1777287097849,-923.43,0.0003452,120]
[421244369,1777287097859,-814.23,0.0003452,7]
[421244370,1777287097869,-500.0,0.0003452,120]
[421244371,1777287097879,-545.89,0.0003452,120]
[421244372,1777287097889,-500.0,0.0003452,120]
[421244373,1777287097899,-607.22,0.0003452,120]
[421244374,1777287097908,-500.0,0.0003452,120]
[421244375,1777287097919,-1022.01,0.0003452,120]
[421244376,1777287097928,-1403.37,0.0003452,120]
[421244377,1777287097937,-571.92,0.0003452,120]
[421244378,1777287097947,-996.98,0.0003452,120]
[421244379,1777287097956,-500.0,0.0003452,120]
[421244380,1777287097966,-500.0,0.0003452,120]
[421244381,1777287097976,-500.0,0.0003452,120]
[421244382,1777287097985,-500.0,0.0003452,120]
[421244383,1777287097995,-500.0,0.0003452,120]
[421244384,1777287098005,-500.0,0.0003452,120]
[421244385,1777287098015,-500.0,0.0003452,120]
[421244386,1777287098024,-500.0,0.0003452,120]
[421244387,1777287098034,-2027.39,0.0003452,120]
[421244388,1777287098044,-415.59277052,0.0003452,120]
[421244389,1777287098054,-500.0,0.0003452,120]
[421244390,1777287098063,-544.78,0.0003452,120]
[421244391,1777287098073,-1173.63,0.0003452,120]
[421244392,1777287098082,-580.92,0.0003452,120]
[421244393,1777287098092,-500.0,0.0003452,120]
[421244394,1777287098102,-500.0,0.0003452,120]
[421244395,1777287098112,-500.0,0.0003452,120]
[421244396,1777287098121,-957.19,0.0003452,120]
[421244397,1777287098131,-500.0,0.0003452,120]
[421244398,1777287098143,-500.0,0.0003452,120]
[421244399,1777287098152,-1129.42,0.0003452,120]
[421244400,1777287098161,-549.6,0.0003452,120]
[421244401,1777287098171,-209.26901405,0.0003452,120]
[421244402,1777287098180,-500.0,0.0003452,120]
[421244403,1777287098190,-500.0,0.0003452,120]
[421244404,1777287098199,-500.0,0.0003452,120]
[421244405,1777287098208,-500.0,0.0003452,120]
[421244406,1777287098217,-500.0,0.0003452,120]
[421244407,1777287098227,-957.72,0.0003452,120]
[421244408,1777287098236,-500.0,0.0003452,120]
[421244409,1777287098245,-2273.93,0.0003452,120]
[421244410,1777287098254,-500.0,0.0003452,120]
[421244411,1777287098263,-500.0,0.0003452,120]
[421244412,1777287098273,-531.34,0.0003452,120]
[421244413,1777287098282,-500.0,0.0003452,120]
[421244414,1777287098291,-500.0,0.0003452,120]
[421244415,1777287098301,-500.0,0.0003452,120]
[421244416,1777287098311,-500.0,0.0003452,120]
[421244417,1777287098320,-826.33,0.0003452,120]
[421244418,1777287098330,-509.36,0.0003452,120]
[421244419,1777287098339,-500.0,0.0003452,120]
[421244420,1777287098348,-1144.83,0.0003452,120]
[421244421,1777287098358,-870.72,0.0003452,120]
[421244422,1777287098367,-500.0,0.0003452,120]
[421244423,1777287098377,-500.0,0.0003452,120]
[421244424,1777287098387,-409.17191563,0.0003452,120]
[421244425,1777287098397,-500.0,0.0003452,120]
[421244426,1777287098406,-1987.57,0.0003452,120]
[421244427,1777287098415,-1889.91,0.0003452,120]
[421244428,1777287098425,-997.41,0.0003452,120]
[421244429,1777287098434,-500.0,0.0003452,120]
[421244430,1777287098443,-500.0,0.0003452,16]
[421244431,1777287098453,-645.47,0.0003452,120]
[421244432,1777287098462,-551.39,0.0003452,120]
[421244433,1777287098472,-500.0,0.0003452,120]
[421244434,1777287098482,-607.71,0.0003452,120]
[421244435,1777287098491,-500.0,0.0003452,120]
[421244436,1777287098501,-500.0,0.0003452,120]
[421244437,1777287098510,-1410.28,0.0003452,120]
[421244438,1777287098519,-1075.28,0.0003452,120]
[421244439,1777287098529,-166.21527323,0.0003452,120]
[421244440,1777287098854,-512.2,0.0003452,120]
[421244441,1777287098865,-500.0,0.0003452,120]
[421244442,1777287098874,-571.84,0.0003452,120]
[421244443,1777287098883,-500.0,0.0003452,120]
[421244444,1777287098893,-670.88,0.0003452,120]
[421244445,1777287098902,-927.87,0.0003452,120]
[421244446,1777287098912,-500.0,0.0003452,120]
[421244447,1777287098921,-733.46,0.0003452,120]
[421244448,1777287098930,-500.0,0.0003452,120]
[421244449,1777287098940,-845.56,0.0003452,120]
[421244450,1777287098949,-500.0,0.0003452,120]
[421244451,1777287098958,-500.0,0.0003452,120]
[421244452,1777287098968,-1708.75,0.0003452,120]
[421244453,1777287098977,-500.0,0.0003452,120]
[421244454,1777287098986,-1389.02,0.0003452,120]
[421244455,1777287098995,-969.99,0.0003452,120]
[421244456,1777287099005,-721.4,0.0003452,120]
[421244457,1777287099015,-500.0,0.0003452,120]
[421244458,1777287099024,-832.2,0.0003452,120]
[421244459,1777287099033,-500.0,0.0003452,120]
[421244460,1777287099043,-1256.96,0.0003452,120]
[421244461,1777287099052,-822.73,0.0003452,120]
[421244462,1777287099062,-1697.87,0.0003452,120]
[421244463,1777287099071,-725.79,0.0003452,120]
[421244464,1777287099081,-740.81,0.0003452,120]
[421244465,1777287099090,-767.5,0.0003452,120]
[421244466,1777287099099,-704.65,0.0003452,120]
[421244467,1777287099108,-874.64,0.0003452,120]
[421244468,1777287099117,-500.0,0.0003452,120]
[421244469,1777287099126,-500.0,0.0003452,120]
[421244470,1777287099136,-500.0,0.0003452,120]
[421244471,1777287099146,-1571.63,0.0003452,120]
[421244472,1777287099155,-539.51,0.0003452,120]
[421244473,1777287099165,-279.71170413,0.0003452,120]
[421244474,1777287099175,-3139.33,0.0003452,120]
[421244475,1777287099184,-500.0,0.0003452,120]
[421244476,1777287099193,-631.89,0.0003452,120]
[421244477,1777287099202,-500.0,0.0003452,120]
[421244478,1777287099211,-724.47,0.0003452,120]
[421244479,1777287099220,-830.35,0.0003452,120]
[421244480,1777287099230,-714.42,0.0003452,120]
[421244481,1777287099240,-529.87,0.0003452,120]
[421244482,1777287099249,-890.53,0.0003452,120]
[421244483,1777287099258,-633.28,0.0003452,120]
[421244484,1777287099268,-1042.08,0.0003452,120]
[421244485,1777287099277,-500.0,0.0003452,120]
[421244486,1777287099287,-1031.26,0.0003452,120]
[421244487,1777287099296,-500.0,0.0003452,120]
[421244488,1777287099305,-500.0,0.0003452,120]
[421244489,1777287099315,-789.82,0.0003452,120]
[421244490,1777287099325,-500.0,0.0003452,120]
[421244491,1777287099335,-500.0,0.0003452,120]
[421244492,1777287099345,-1044.44,0.0003452,7]
[421244493,1777287099355,-500.0,0.0003452,120]
[421244494,1777287099364,-500.0,0.0003452,120]
[421244495,1777287099374,-500.0,0.0003452,120]
[421244496,1777287099384,-500.0,0.0003452,120]
[421244497,1777287099394,-500.0,0.0003452,120]
[421244498,1777287099403,-500.0,0.0003452,120]
[421244499,1777287099412,-2152.64,0.0003452,120]
[421244500,1777287099422,-500.0,0.0003452,120]
[421244501,1777287099431,-500.0,0.0003452,120]
[421244502,1777287099440,-951.45,0.0003452,120]
[421244503,1777287099450,-10570.76,0.0003452,120]
[421244504,1777287099459,-500.0,0.0003452,120]
[421244505,1777287099468,-500.0,0.0003452,120]
[421244506,1777287099477,-953.25,0.0003452,120]
[421244507,1777287099486,-500.0,0.0003452,120]
[421244508,1777287099496,-683.94,0.0003452,120]
[421244509,1777287099505,-1457.61,0.0003452,120]
[421244510,1777287099514,-500.0,0.0003452,120]
[421244511,1777287099523,-500.0,0.0003452,120]
[421244512,1777287099532,-853.59,0.0003452,120]
[421244513,1777287099541,-927.26,0.0003452,120]
[421244514,1777287099551,-692.0,0.0003452,120]
[421244515,1777287099560,-500.0,0.0003452,120]
[421244516,1777287099569,-1072.51,0.0003452,120]
[421244517,1777287099578,-2915.57,0.0003452,120]
[421244518,1777287099587,-500.0,0.0003452,120]
[421244519,1777287099596,-731.44,0.0003452,120]
[421244520,1777287099605,-500.0,0.0003452,120]
[421244521,1777287099615,-701.43,0.0003452,120]
[421244522,1777287099624,-500.0,0.0003452,120]
[421244523,1777287099633,-954.88,0.0003452,120]
[421244524,1777287099643,-838.15,0.0003452,120]
[421244525,1777287099652,-1783.16,0.0003452,120]
[421244526,1777287099661,-500.0,0.0003452,120]
[421244527,1777287099671,-500.0,0.0003452,120]
[421244528,1777287099680,-500.0,0.0003452,120]
[421244529,1777287099689,-500.0,0.0003452,120]
[421244530,1777287099699,-4705.11,0.0003452,120]
[421244531,1777287099708,-1730.6,0.0003452,120]
[421244532,1777287099717,-500.0,0.0003452,120]
[421244533,1777287099726,-1123.77,0.0003452,120]
[421244534,1777287099736,-500.0,0.0003452,120]
[421244535,1777287099745,-500.0,0.0003452,120]
[421244536,1777287099755,-361.62061679,0.0003452,120]
[421244537,1777287099764,-1408.68,0.0003452,120]
[421244538,1777287099773,-714.81,0.0003452,120]
[421244539,1777287099783,-1779.59,0.0003452,120]
[421244540,1777287099792,-500.0,0.0003452,120]
[421244541,1777287099802,-667.82,0.0003452,120]
[421244542,1777287099812,-5381.05,0.0003452,120]
[421244543,1777287099821,-922.62,0.0003452,120]
[421244544,1777287099831,-625.44,0.0003452,5]
[421244545,1777287099841,-500.0,0.0003452,120]
[421244546,1777287099850,-1690.78,0.0003452,120]
[421244547,1777287099860,-2035.1,0.0003452,120]
[421244548,1777287099870,-674.61,0.0003452,120]
[421244549,1777287099879,-500.0,0.0003452,120]
[421244550,1777287099889,-500.0,0.0003452,120]
[421244551,1777287099899,-1164.41,0.0003452,120]
[421244552,1777287099909,-1082.08,0.0003452,120]
[421244553,1777287099918,-500.0,0.0003452,120]
[421244554,1777287099927,-998.96,0.0003452,120]
[421244555,1777287099937,-1043.04,0.0003452,120]
[421244556,1777287099946,-784.08,0.0003452,120]
[421244557,1777287099956,-1079.64,0.0003452,120]
[421244558,1777287099965,-1143.94,0.0003452,120]
[421244559,1777287099974,-500.0,0.0003452,120]
[421244560,1777287099984,-1451.57,0.0003452,120]
[421244561,1777287099993,-500.0,0.0003452,120]
[421244562,1777287100003,-500.0,0.0003452,120]
[421244563,1777287100013,-819.21,0.0003452,120]
[421244564,1777287100023,-1138.56,0.0003452,120]
[421244565,1777287100032,-601.09,0.0003452,120]
[421244566,1777287100042,-4201.7,0.0003452,120]
[421244567,1777287100052,-996.55,0.0003452,120]
[421244568,1777287100062,-1047.55,0.0003452,120]
[421244569,1777287100072,-541.91,0.0003452,120]
[421244570,1777287100081,-500.0,0.0003452,120]
[421244571,1777287100091,-500.0,0.0003452,120]
[421244572,1777287100100,-500.0,0.0003452,120]
[421244573,1777287100110,-795.18,0.0003452,120]
[421244574,1777287100119,-1162.36,0.0003452,120]
[421244575,1777287100129,-500.0,0.0003452,120]
[421244576,1777287100139,-500.0,0.0003452,120]
[421244577,1777287100149,-845.1,0.0003452,120]
[421244578,1777287100159,-1487.38,0.0003452,120]
[421244579,1777287100169,-500.0,0.0003452,120]
[421244580,1777287100179,-500.0,0.0003452,120]
[421244581,1777287100189,-500.0,0.0003452,120]
[421244582,1777287100199,-500.0,0.0003452,120]
[421244583,1777287100209,-898.94,0.0003452,120]
[421244584,1777287100219,-500.0,0.0003452,120]
[421244585,1777287100229,-500.0,0.0003452,120]
[421244586,1777287100239,-500.0,0.0003452,120]
[421244587,1777287100250,-324.53563681,0.0003452,120]
[421244588,1777287100260,-2636.09,0.0003452,120]
[421244589,1777287100270,-500.0,0.0003452,120]
[421244590,1777287100280,-500.62,0.0003452,120]
[421244591,1777287100290,-1789.45,0.0003452,120]
[421244592,1777287100299,-500.0,0.0003452,120]
[421244593,1777287100309,-1085.3,0.0003452,120]
[421244594,1777287100318,-892.08,0.0003452,120]
[421244595,1777287100328,-500.0,0.0003452,120]
[421244596,1777287100337,-631.37,0.0003452,120]
[421244597,1777287100347,-581.62,0.0003452,120]
[421244598,1777287100356,-808.43,0.0003452,120]
[421244599,1777287100366,-741.62,0.0003452,120]
[421244600,1777287100375,-500.0,0.0003452,120]
[421244601,1777287100385,-500.0,0.0003452,120]
[421244602,1777287100394,-500.0,0.0003452,120]
[421244603,1777287100403,-500.0,0.0003452,120]
[421244604,1777287100412,-762.27,0.0003452,120]
[421244605,1777287100422,-1157.96,0.0003452,120]
[421244606,1777287100431,-633.93,0.0003452,120]
[421244607,1777287100440,-874.69,0.0003452,120]
[421244608,1777287100450,-500.0,0.0003452,120]
[421244609,1777287100460,-900.98,0.0003452,120]
[421244610,1777287100469,-500.0,0.0003452,120]
[421244611,1777287100479,-10204.73,0.0003452,120]
[421244612,1777287100489,-500.0,0.0003452,120]
[421244613,1777287100498,-1526.17,0.0003452,120]
[421244614,1777287100508,-500.0,0.0003452,120]
[421244615,1777287100518,-500.0,0.0003452,120]
[421244616,1777287100528,-891.6,0.0003452,120]
[421244617,1777287100538,-287.92192426,0.0003452,120]
[421244618,1777287100547,-1367.53,0.0003452,120]
[421244619,1777287100557,-500.0,0.0003452,120]
[421244620,1777287100566,-683.25,0.0003452,120]
[421244621,1777287100576,-737.72,0.0003452,120]
[421244622,1777287100585,-500.0,0.0003452,120]
[421244623,1777287100594,-500.0,0.0003452,120]
[421244624,1777287100604,-10627.51,0.0003452,11]
[421244625,1777287100613,-500.0,0.0003452,120]
[421244626,1777287100622,-1508.4,0.0003452,120]
[421244627,1777287100631,-500.0,0.0003452,120]
[421244628,1777287100640,-944.61,0.0003452,120]
[421244629,1777287100650,-1952.39,0.0003452,120]
[421244630,1777287100658,-992.31,0.0003452,120]
[421244631,1777287100667,-644.32,0.0003452,120]
[421244632,1777287100677,-331.59773778,0.0003452,120]
[421244633,1777287100686,-855.86,0.0003452,120]
[421244634,1777287100696,-500.0,0.0003452,120]
[421244635,1777287100705,-938.15,0.0003452,120]
[421244636,1777287100714,-500.0,0.0003452,120]
[421244637,1777287100724,-976.87,0.0003452,120]
[421244638,1777287100733,-500.0,0.0003452,120]
[421244639,1777287100742,-500.0,0.0003452,120]
[421244640,1777287100751,-505.03,0.0003452,120]
[421244641,1777287100760,-889.14,0.0003452,120]
[421244642,1777287100770,-500.0,0.0003452,120]
[421244643,1777287100779,-816.73,0.0003452,120]
[421244644,1777287100788,-624.72,0.0003452,120]
[421244645,1777287100798,-9821.09,0.0003452,14]
[421244646,1777287100807,-523.03,0.0003452,120]
[421244647,1777287100816,-2650.84,0.0003452,2]
[421244648,1777287100825,-500.0,0.0003452,120]
[421244649,1777287100835,-822.98,0.0003452,120]
[421244650,1777287100844,-729.37,0.0003452,120]
[421244651,1777287100853,-1000.0,0.0003452,120]
[421244652,1777287100863,-500.0,0.0003452,120]
[421244653,1777287100872,-1044.79,0.0003452,120]
[421244654,1777287100881,-2033.75,0.0003452,120]
[421244655,1777287100891,-546.31119306,0.0003452,120]
[421244656,1777287100900,-2315.34,0.0003452,120]
[421244657,1777287100910,-957.71,0.0003452,120]
[421244658,1777287100919,-651.78,0.0003452,120]
[421244659,1777287100929,-500.0,0.0003452,120]
[421244660,1777287100939,-1144.22,0.0003452,120]
[421244661,1777287100949,-872.94,0.0003452,120]
[421244662,1777287100959,-500.0,0.0003452,120]
[421244663,1777287100968,-500.0,0.0003452,120]
[421244664,1777287100977,-905.69,0.0003452,120]
[421244665,1777287100987,-659.77,0.0003452,120]
[421244666,1777287100997,-500.0,0.0003452,120]
[421244667,1777287101006,-572.93,0.0003452,120]
[421244668,1777287101016,-526.89,0.0003452,120]
[421244669,1777287101025,-500.0,0.0003452,30]
[421244670,1777287101035,-2198.73,0.0003452,31]
[421244671,1777287101044,-936.24,0.0003452,120]
[421244672,1777287101054,-7236.62,0.0003452,120]
[421244673,1777287101063,-1500.0,0.0003452,120]
[421244674,1777287101072,-601.2,0.0003452,120]
[421244675,1777287101081,-1282.75,0.0003452,120]
[421244676,1777287101091,-500.0,0.0003452,120]
[421244677,1777287101100,-500.0,0.0003452,120]
[421244678,1777287101110,-500.0,0.0003452,120]
[421244679,1777287101119,-154.0,0.00034521,10]
[421244680,1777287101129,-300.0,0.0003456,120]
[421244681,1777287101138,-300.0,0.0003456,120]
[421244682,1777287101236,-219.48921421,0.00034569,120]
[421244683,1777287101246,-506.0,0.00034576,7]
[421244684,1777287101256,-219.48921421,0.00034663,120]
[421244685,1777287101265,-219.48921421,0.00034758,120]
[421244686,1777287101275,-410.57,0.00034791,30]
[421244687,1777287101287,-40919.8,0.00034794,120]
[421244688,1777287101296,-5510.884336,0.00034794,120]
[421244689,1777287101305,-406.931409,0.00034794,120]
[421244690,1777287101314,-325.762595,0.00034794,120]
[421244691,1777287101323,-342.964341,0.00034794,120]
[421244692,1777287101332,-2698.281126,0.00034794,120]
[421244693,1777287101340,-500.0,0.00034794,30]
[421244694,1777287101349,-500.0,0.00034794,90]
[421244695,1777287101358,-500.0,0.00034794,120]
[421244696,1777287101368,-155.44644411,0.00034794,120]
[421244697,1777287101377,-500.0,0.00034794,120]
[421244698,1777287101386,-500.0,0.00034794,120]
[421244699,1777287101396,-500.0,0.00034794,120]
[421244700,1777287101405,-500.0,0.00034794,120]
[421244701,1777287101414,-500.0,0.00034794,120]
[421244702,1777287101423,-863.36,0.00034794,120]
[421244703,1777287101433,-500.0,0.00034794,2]
[421244704,1777287101442,-500.0,0.00034794,120]
[421244705,1777287101452,-599.06,0.00034794,120]
[421244706,1777287101462,-640.83,0.00034794,120]
[421244707,1777287101472,-500.0,0.00034794,120]
[421244708,1777287101481,-500.0,0.00034794,120]
[421244709,1777287101490,-500.0,0.00034794,120]
[421244710,1777287101499,-1211.95,0.00034794,120]
[421244711,1777287101508,-565.53,0.00034794,120]
[421244712,1777287101517,-500.0,0.00034794,120]
[421244713,1777287101526,-553.4,0.00034794,120]
[421244714,1777287101535,-715.07,0.00034794,120]
[421244715,1777287101544,-223.85616355,0.00034794,120]
[421244716,1777287101553,-500.0,0.00034794,120]
[421244717,1777287101562,-938.55,0.00034794,120]
[421244718,1777287101571,-1090.36,0.00034794,120]
[421244719,1777287101581,-634.95,0.00034794,120]
[421244720,1777287101590,-500.0,0.00034794,120]
[421244721,1777287101599,-500.0,0.00034794,120]
[421244722,1777287101608,-528.14,0.00034794,120]
[421244723,1777287101617,-500.0,0.00034794,120]
[421244724,1777287101626,-1072.38,0.00034794,120]
[421244725,1777287101635,-1314.31,0.00034794,120]
[421244726,1777287101644,-703.47,0.00034794,120]
[421244727,1777287101654,-500.0,0.00034794,120]
[421244728,1777287101663,-500.0,0.00034794,120]
[421244729,1777287101672,-500.0,0.00034794,120]
[421244730,1777287101681,-500.0,0.00034794,120]
[421244731,1777287101690,-516.81,0.00034794,120]
[421244732,1777287101699,-500.0,0.00034794,30]
[421244733,1777287101708,-2357.31,0.00034794,120]
[421244734,1777287101717,-722.01,0.00034794,120]
[421244735,1777287101727,-513.09195442,0.00034794,120]
[421244736,1777287101735,-500.0,0.00034794,120]
[421244737,1777287101744,-500.0,0.00034794,120]
[421244738,1777287101753,-500.0,0.00034794,120]
[421244739,1777287101762,-500.0,0.00034794,120]
[421244740,1777287101772,-1649.9,0.00034794,30]
[421244741,1777287101781,-527.75,0.00034794,120]
[421244742,1777287101790,-500.0,0.00034794,120]
[421244743,1777287101799,-500.0,0.00034794,120]
[421244744,1777287101809,-663.98,0.00034794,120]
[421244745,1777287101818,-752.81,0.00034794,120]
[421244746,1777287101827,-696.22,0.00034794,120]
[421244747,1777287101836,-500.0,0.00034794,120]
[421244748,1777287101846,-500.0,0.00034794,120]
[421244749,1777287101855,-1446.95,0.00034794,120]
[421244750,1777287101864,-964.96,0.00034794,120]
[421244751,1777287101873,-500.0,0.00034794,120]
[421244752,1777287101883,-500.0,0.00034794,120]
[421244753,1777287101892,-529.41,0.00034794,120]
[421244754,1777287101901,-500.0,0.00034794,120]
[421244755,1777287101910,-500.0,0.00034794,120]
[421244756,1777287101919,-500.0,0.00034794,120]
[421244757,1777287101928,-418.26987572,0.00034794,120]
[421244758,1777287101938,-1077.32,0.00034794,120]
[421244759,1777287101947,-1000.0,0.00034794,120]
[421244760,1777287101956,-949.83,0.00034794,120]
[421244761,1777287101965,-765.4,0.00034794,120]
[421244762,1777287101974,-599.76,0.00034794,120]
[421244763,1777287101983,-500.0,0.00034794,120]
[421244764,1777287101992,-500.0,0.00034794,120]
[421244765,1777287102002,-500.0,0.00034794,120]
[421244766,1777287102011,-500.0,0.00034794,120]
[421244767,1777287102020,-812.99,0.00034794,120]
[421244768,1777287102030,-500.0,0.00034794,120]
[421244769,1777287102039,-1319.91,0.00034794,120]
[421244770,1777287102049,-559.35,0.00034794,120]
[421244771,1777287102058,-1706.39,0.00034794,120]
[421244772,1777287102067,-500.0,0.00034794,120]
[421244773,1777287102076,-500.0,0.00034794,120]
[421244774,1777287102085,-500.0,0.00034794,120]
[421244775,1777287102094,-500.0,0.00034794,120]
[421244776,1777287102103,-500.0,0.00034794,120]
[421244777,1777287102112,-668.63,0.00034794,120]
[421244778,1777287102122,-500.0,0.00034794,120]
[421244779,1777287102131,-1799.8,0.00034794,30]
[421244780,1777287102140,-2310.82,0.00034794,120]
[421244781,1777287102149,-500.0,0.00034794,120]
[421244782,1777287102159,-951.83,0.00034794,120]
[421244783,1777287102168,-500.0,0.00034794,120]
[421244784,1777287102178,-500.0,0.00034794,120]
[421244785,1777287102187,-500.0,0.00034794,120]
[421244786,1777287102196,-500.0,0.00034794,120]
[421244787,1777287102206,-500.0,0.00034794,120]
[421244788,1777287102217,-500.0,0.00034794,120]
[421244789,1777287102227,-500.0,0.00034794,120]
[421244790,1777287102237,-691.55,0.00034794,120]
[421244791,1777287102247,-500.0,0.00034794,120]
[421244792,1777287102257,-500.0,0.00034794,120]
[421244793,1777287102267,-822.42,0.00034794,120]
[421244794,1777287102278,-500.0,0.00034794,120]
[421244795,1777287102290,-690.22,0.00034794,120]
[421244796,1777287102300,-1041.51,0.00034794,120]
[421244797,1777287102315,-817.53,0.00034794,120]
[421244798,1777287102326,-500.0,0.00034794,120]
[421244799,1777287102336,-500.0,0.00034794,120]
[421244800,1777287102346,-500.0,0.00034794,120]
[421244801,1777287102356,-812.8,0.00034794,120]
[421244802,1777287102366,-594.31127074,0.00034794,120]
[421244803,1777287102375,-894.99,0.00034794,120]
[421244804,1777287102386,-1018.47,0.00034794,120]
[421244805,1777287102396,-500.0,0.00034794,120]
[421244806,1777287102406,-1560.45,0.00034794,10]
[421244807,1777287102416,-654.65,0.00034794,120]
[421244808,1777287102425,-500.0,0.00034794,120]
[421244809,1777287102435,-770.15,0.00034794,120]
[421244810,1777287102445,-747.23,0.00034794,120]
[421244811,1777287102454,-592.21,0.00034794,120]
[421244812,1777287102464,-1047.65,0.00034794,120]
[421244813,1777287102474,-500.0,0.00034794,120]
[421244814,1777287102484,-500.0,0.00034794,120]
[421244815,1777287102493,-300.10459261,0.00034794,120]
[421244816,1777287102502,-500.0,0.00034794,120]
[421244817,1777287102511,-548.93,0.00034794,120]
[421244818,1777287102522,-500.0,0.00034794,120]
[421244819,1777287102532,-500.0,0.00034794,120]
[421244820,1777287102542,-500.0,0.00034794,120]
[421244821,1777287102551,-500.0,0.00034794,120]
[421244822,1777287102560,-1885.25,0.00034794,120]
[421244823,1777287102569,-500.0,0.00034794,120]
[421244824,1777287102578,-1242.85,0.00034794,120]
[421244825,1777287102588,-632.88,0.00034794,120]
[421244826,1777287102597,-810.82,0.00034794,120]
[421244827,1777287102606,-696.25,0.00034794,120]
[421244828,1777287102615,-526.8838518,0.00034794,120]
[421244829,1777287102625,-513.44753677,0.00034794,120]
[421244830,1777287102634,-500.0,0.00034794,120]
[421244831,1777287102643,-500.0,0.00034794,120]
[421244832,1777287102652,-500.0,0.00034794,120]
[421244833,1777287102661,-1579.01,0.00034794,120]
[421244834,1777287102670,-500.0,0.00034794,120]
[421244835,1777287102680,-601.37,0.00034794,120]
[421244836,1777287102689,-1456.44,0.00034794,120]
[421244837,1777287102698,-595.98,0.00034794,120]
[421244838,1777287102707,-1572.92,0.00034794,120]
[421244839,1777287102716,-500.0,0.00034794,120]
[421244840,1777287102725,-1223.21,0.00034794,120]
[421244841,1777287102734,-500.0,0.00034794,120]
[421244842,1777287102743,-500.0,0.00034794,120]
[421244843,1777287102752,-987.31,0.00034794,120]
[421244844,1777287102762,-500.0,0.00034794,120]
[421244845,1777287102771,-500.0,0.00034794,120]
[421244846,1777287102780,-685.94,0.00034794,120]
[421244847,1777287102789,-996.26,0.00034794,120]
[421244848,1777287102801,-977.11,0.00034794,120]
[421244849,1777287102810,-1114.4,0.00034794,120]
[421244850,1777287102820,-922.87,0.00034794,120]
[421244851,1777287102829,-694.64,0.00034794,120]
[421244852,1777287102838,-876.6,0.00034794,120]
[421244853,1777287102847,-1292.17,0.00034794,120]
[421244854,1777287102855,-500.0,0.00034794,120]
[421244855,1777287102865,-2804.65,0.00034794,120]
[421244856,1777287102874,-831.75,0.00034794,14]
[421244857,1777287102883,-500.0,0.00034794,120]
[421244858,1777287102893,-500.0,0.00034794,14]
[421244859,1777287102902,-695.08,0.00034794,120]
[421244860,1777287102911,-619.73470412,0.00034794,30]